[Event "Late-Titled-Tuesday-Blitz-May-14-2024"]
[Site "Chess.com"]
[Date "2024.05.14"]
[Round "8"]
[White "tgpgoat"]
[Black "nabukatnezarr"]
[Result "0-1"]
[WhiteElo "2466"]
[BlackElo "2623"]
[TimeControl "180+1"]
[EndTime "15:28:52 PDT"]
[Termination "nabukatnezarr won by checkmate"]

1. Nf3 {[%clk 0:03:00.9]} 1... Nf6 {[%clk 0:02:59.8]} 2. c4 {[%clk 0:03:00.4]}
2... e6 {[%clk 0:02:59.7]} 3. Nc3 {[%clk 0:03:00.1]} 3... Bb4 {[%clk 0:02:58.3]}
4. Qc2 {[%clk 0:02:57.1]} 4... O-O {[%clk 0:02:56.6]} 5. g3 {[%clk 0:02:56.7]}
5... b6 {[%clk 0:02:55.2]} 6. Bg2 {[%clk 0:02:57]} 6... Bb7 {[%clk 0:02:55.7]}
7. O-O {[%clk 0:02:57.7]} 7... d5 {[%clk 0:02:50]} 8. Ne5 {[%clk 0:02:55]} 8...
Nbd7 {[%clk 0:02:46]} 9. d4 {[%clk 0:02:54.2]} 9... Bxc3 {[%clk 0:02:42]} 10.
Qxc3 {[%clk 0:02:52.5]} 10... Nxe5 {[%clk 0:02:34.1]} 11. dxe5 {[%clk
0:02:53.4]} 11... Ne4 {[%clk 0:02:34.6]} 12. Bxe4 {[%clk 0:02:51.7]} 12... dxe4
{[%clk 0:02:35.5]} 13. Bf4 {[%clk 0:02:51]} 13... Qe7 {[%clk 0:02:29]} 14. Rad1
{[%clk 0:02:46.2]} 14... Rfd8 {[%clk 0:02:28.9]} 15. h4 {[%clk 0:02:42.9]} 15...
h6 {[%clk 0:02:22.1]} 16. a3 {[%clk 0:02:39.3]} 16... Rd7 {[%clk 0:02:12.3]} 17.
Rxd7 {[%clk 0:02:37.6]} 17... Qxd7 {[%clk 0:02:12.3]} 18. Rc1 {[%clk 0:02:33.2]}
18... c5 {[%clk 0:01:38.9]} 19. b4 {[%clk 0:02:30.3]} 19... Rc8 {[%clk
0:01:33.5]} 20. Be3 {[%clk 0:02:27.9]} 20... Qa4 {[%clk 0:01:26.3]} 21. bxc5
{[%clk 0:02:25.9]} 21... bxc5 {[%clk 0:01:25.7]} 22. Rb1 {[%clk 0:02:26.4]}
22... Bc6 {[%clk 0:01:19.9]} 23. Bxc5 {[%clk 0:02:23.9]} 23... e3 {[%clk
0:01:17.8]} 24. Bxe3 {[%clk 0:02:18.4]} 24... Be4 {[%clk 0:01:16.5]} 25. Rc1
{[%clk 0:02:18.7]} 25... Rb8 {[%clk 0:01:08.7]} 26. Qd4 {[%clk 0:02:12.2]} 26...
Bc6 {[%clk 0:00:37.9]} 27. Qxa7 {[%clk 0:02:08.9]} 27... Qb3 {[%clk 0:00:37.3]}
28. Qc5 {[%clk 0:02:02.6]} 28... Rc8 {[%clk 0:00:35.9]} 29. Qb4 {[%clk
0:01:58.1]} 29... Qa2 {[%clk 0:00:36]} 30. Qc3 {[%clk 0:01:50.3]} 30... Qxe2
{[%clk 0:00:35.3]} 31. Bc5 {[%clk 0:01:41.3]} 31... Ba8 {[%clk 0:00:32.6]} 32.
Qe3 {[%clk 0:01:36]} 32... Qg4 {[%clk 0:00:31.2]} 33. Bb4 {[%clk 0:01:33.9]}
33... Qh3 {[%clk 0:00:29]} 34. f3 {[%clk 0:01:18.2]} 34... Qxg3+ {[%clk
0:00:29.1]} 35. Kf1 {[%clk 0:01:15.3]} 35... Bxf3 {[%clk 0:00:29.7]} 36. Qf2
{[%clk 0:01:09.1]} 36... Qh3+ {[%clk 0:00:26.8]} 37. Kg1 {[%clk 0:01:07.9]}
37... Rd8 {[%clk 0:00:20.6]} 38. Be1 {[%clk 0:00:37.8]} 38... Rd3 {[%clk
0:00:18.1]} 39. Rc3 {[%clk 0:00:34]} 39... Qg4+ {[%clk 0:00:18.3]} 40. Kh2
{[%clk 0:00:34.3]} 40... Qf4+ {[%clk 0:00:17]} 41. Qg3 {[%clk 0:00:31.6]} 41...
Rd2+ {[%clk 0:00:16.9]} 42. Kg1 {[%clk 0:00:05.2]} 42... Qd4+ {[%clk 0:00:14.9]}
43. Kf1 {[%clk 0:00:02.1]} 43... Bg2+ {[%clk 0:00:12.8]} 44. Qxg2 {[%clk
0:00:02.1]} 44... Rxg2 {[%clk 0:00:13.7]} 45. Kxg2 {[%clk 0:00:02]} 45... Qxe5
{[%clk 0:00:12.9]} 46. Kf1 {[%clk 0:00:02.9]} 46... Qf4+ {[%clk 0:00:12.4]} 47.
Ke2 {[%clk 0:00:02.9]} 47... Qe4+ {[%clk 0:00:12.4]} 48. Kd2 {[%clk 0:00:03.4]}
48... Qd4+ {[%clk 0:00:12.5]} 49. Kc2 {[%clk 0:00:03.9]} 49... Qc5 {[%clk
0:00:12.8]} 50. Bd2 {[%clk 0:00:03.7]} 50... g5 {[%clk 0:00:10.9]} 51. hxg5
{[%clk 0:00:02.1]} 51... hxg5 {[%clk 0:00:11.8]} 52. Be3 {[%clk 0:00:01.6]}
52... Qf5+ {[%clk 0:00:12.5]} 53. Kd2 {[%clk 0:00:01.6]} 53... g4 {[%clk
0:00:12.5]} 54. c5 {[%clk 0:00:01.8]} 54... Qd5+ {[%clk 0:00:13.3]} 55. Ke2
{[%clk 0:00:02]} 55... Qf3+ {[%clk 0:00:13.1]} 56. Kd2 {[%clk 0:00:01.8]} 56...
Qc6 {[%clk 0:00:12.6]} 57. Rc1 {[%clk 0:00:02.3]} 57... g3 {[%clk 0:00:12.8]}
58. Rg1 {[%clk 0:00:02.8]} 58... g2 {[%clk 0:00:13.1]} 59. Ke2 {[%clk
0:00:03.4]} 59... f5 {[%clk 0:00:08.1]} 60. Kf2 {[%clk 0:00:04.3]} 60... e5
{[%clk 0:00:07.7]} 61. Rxg2+ {[%clk 0:00:04.7]} 61... Kf7 {[%clk 0:00:08]} 62.
Rg5 {[%clk 0:00:05.1]} 62... Kf6 {[%clk 0:00:07]} 63. Rh5 {[%clk 0:00:05.2]}
63... Qe4 {[%clk 0:00:06.4]} 64. Rh6+ {[%clk 0:00:05.6]} 64... Kg7 {[%clk
0:00:06.7]} 65. Rd6 {[%clk 0:00:05.4]} 65... Qc2+ {[%clk 0:00:06.5]} 66. Kf3
{[%clk 0:00:05.7]} 66... Qe4+ {[%clk 0:00:06]} 67. Kf2 {[%clk 0:00:05.9]} 67...
Qh4+ {[%clk 0:00:06.4]} 68. Ke2 {[%clk 0:00:06.2]} 68... f4 {[%clk 0:00:06.6]}
69. Bf2 {[%clk 0:00:06.5]} 69... Qg4+ {[%clk 0:00:07]} 70. Ke1 {[%clk
0:00:07.1]} 70... Qf3 {[%clk 0:00:06.3]} 71. c6 {[%clk 0:00:06.8]} 71... Qe4+
{[%clk 0:00:06.8]} 72. Kf1 {[%clk 0:00:06.8]} 72... Qc4+ {[%clk 0:00:07]} 73.
Kg2 {[%clk 0:00:07]} 73... Qe4+ {[%clk 0:00:07.3]} 74. Kf1 {[%clk 0:00:07.4]}
74... Qh1+ {[%clk 0:00:06.6]} 75. Ke2 {[%clk 0:00:07.5]} 75... Qh5+ {[%clk
0:00:06.8]} 76. Kf1 {[%clk 0:00:07.2]} 76... Qh3+ {[%clk 0:00:06.7]} 77. Ke2
{[%clk 0:00:07.5]} 77... f3+ {[%clk 0:00:06.3]} 78. Ke3 {[%clk 0:00:07.5]} 78...
Qf5 {[%clk 0:00:06.4]} 79. Rd7+ {[%clk 0:00:07.2]} 79... Kg6 {[%clk 0:00:05.7]}
80. Rd6+ {[%clk 0:00:07.4]} 80... Kh5 {[%clk 0:00:05.6]} 81. Rd3 {[%clk
0:00:06.8]} 81... Qf4# {[%clk 0:00:05.6]} 0-1

[Event "Late-Titled-Tuesday-Blitz-May-14-2024"]
[Site "Chess.com"]
[Date "2024.05.14"]
[Round "8"]
[White "cukricek"]
[Black "only_strong_moves"]
[Result "0-1"]
[WhiteElo "2442"]
[BlackElo "2663"]
[TimeControl "180+1"]
[EndTime "15:29:26 PDT"]
[Termination "only_strong_moves won by resignation"]

1. g3 {[%clk 0:03:00.9]} 1... h5 {[%clk 0:03:00.9]} 2. Nf3 {[%clk 0:02:56]} 2...
h4 {[%clk 0:03:01.8]} 3. Nxh4 {[%clk 0:02:52]} 3... g5 {[%clk 0:03:02.4]} 4. Nf3
{[%clk 0:02:51.8]} 4... g4 {[%clk 0:03:02.7]} 5. Nd4 {[%clk 0:02:51.3]} 5... e6
{[%clk 0:03:01.1]} 6. e3 {[%clk 0:02:47.2]} 6... Bg7 {[%clk 0:03:01.6]} 7. Bg2
{[%clk 0:02:45.1]} 7... Nh6 {[%clk 0:02:57.6]} 8. c4 {[%clk 0:02:43.3]} 8... c5
{[%clk 0:02:57.6]} 9. Nc2 {[%clk 0:02:42.5]} 9... Nc6 {[%clk 0:02:54.7]} 10. Nc3
{[%clk 0:02:42.8]} 10... Ne5 {[%clk 0:02:53.3]} 11. d3 {[%clk 0:02:40.4]} 11...
d6 {[%clk 0:02:49.5]} 12. O-O {[%clk 0:02:38.8]} 12... Bd7 {[%clk 0:02:49.5]}
13. Rb1 {[%clk 0:02:36]} 13... Bc6 {[%clk 0:02:49.2]} 14. e4 {[%clk 0:02:29.4]}
14... Qf6 {[%clk 0:02:21.4]} 15. Ne3 {[%clk 0:02:24.7]} 15... Nf3+ {[%clk
0:02:20.6]} 16. Bxf3 {[%clk 0:02:20.1]} 16... gxf3 {[%clk 0:02:21.5]} 17. Bd2
{[%clk 0:01:09.3]} 17... O-O-O {[%clk 0:02:18.3]} 18. b4 {[%clk 0:01:08]} 18...
cxb4 {[%clk 0:02:19.2]} 19. Rxb4 {[%clk 0:01:07.7]} 19... Qg6 {[%clk 0:02:04.5]}
20. Qxf3 {[%clk 0:00:56.3]} 20... f5 {[%clk 0:02:04.5]} 21. Ncd5 {[%clk
0:00:41.8]} 21... Rd7 {[%clk 0:01:34.5]} 22. exf5 {[%clk 0:00:35.4]} 22... Nxf5
{[%clk 0:01:31.3]} 23. Nxf5 {[%clk 0:00:33.8]} 23... exf5 {[%clk 0:01:30.7]} 24.
Re1 {[%clk 0:00:28.1]} 24... Qh7 {[%clk 0:01:27.8]} 25. h4 {[%clk 0:00:26.8]}
25... Be5 {[%clk 0:01:25.4]} 26. Bf4 {[%clk 0:00:23.3]} 26... Bc3 {[%clk
0:01:23.6]} 27. Reb1 {[%clk 0:00:20.1]} 27... Bxb4 {[%clk 0:01:23.7]} 28. Rxb4
{[%clk 0:00:20.7]} 28... Qg7 {[%clk 0:01:19.4]} 29. Kh2 {[%clk 0:00:18.3]} 29...
Qd4 {[%clk 0:01:16.2]} 30. Rb3 {[%clk 0:00:13.1]} 30... Rdh7 {[%clk 0:01:12.9]}
31. Bg5 {[%clk 0:00:12.5]} 31... Rf7 {[%clk 0:01:06.2]} 32. Qf4 {[%clk
0:00:07.9]} 32... Qxf4 {[%clk 0:00:59.5]} 33. Nxf4 {[%clk 0:00:08.8]} 33... Re8
{[%clk 0:00:58.7]} 34. d4 {[%clk 0:00:08.8]} 34... Re4 {[%clk 0:00:58.8]} 35. d5
{[%clk 0:00:09.1]} 35... Ba4 {[%clk 0:00:59.4]} 36. Rc3 {[%clk 0:00:08.2]} 36...
Rh7 {[%clk 0:00:55.9]} 37. Ne6 {[%clk 0:00:08.3]} 37... Rg4 {[%clk 0:00:53.5]}
38. Kg2 {[%clk 0:00:07.8]} 38... Re4 {[%clk 0:00:51.5]} 39. c5 {[%clk
0:00:08.2]} 39... Kd7 {[%clk 0:00:47.6]} 40. cxd6 {[%clk 0:00:07.9]} 40... Kxd6
{[%clk 0:00:48.5]} 41. Nc5 {[%clk 0:00:08]} 41... Rd4 {[%clk 0:00:47.7]} 42.
Bf4+ {[%clk 0:00:06]} 42... Kxd5 {[%clk 0:00:47.8]} 43. Nxa4 {[%clk 0:00:05.5]}
43... Rxa4 {[%clk 0:00:48.7]} 44. Rd3+ {[%clk 0:00:05.1]} 44... Rd4 {[%clk
0:00:49.4]} 45. Rb3 {[%clk 0:00:05.3]} 45... b6 {[%clk 0:00:48.2]} 46. Rb5+
{[%clk 0:00:05.3]} 46... Ke6 {[%clk 0:00:47.1]} 47. Re5+ {[%clk 0:00:05.7]}
47... Kf6 {[%clk 0:00:47.7]} 48. Re2 {[%clk 0:00:05.6]} 48... Rdd7 {[%clk
0:00:47]} 49. Bg5+ {[%clk 0:00:05.1]} 49... Kg6 {[%clk 0:00:46.2]} 50. Re6+
{[%clk 0:00:05.4]} 50... Kh5 {[%clk 0:00:46.7]} 51. f3 {[%clk 0:00:03.9]} 51...
Rc7 {[%clk 0:00:42.4]} 52. Kh3 {[%clk 0:00:04.2]} 52... Rc3 {[%clk 0:00:40]} 53.
Kg2 {[%clk 0:00:02.8]} 53... b5 {[%clk 0:00:35.5]} 54. Rf6 {[%clk 0:00:03.1]}
54... b4 {[%clk 0:00:30.2]} 55. Rxf5 {[%clk 0:00:03.7]} 55... Kg6 {[%clk
0:00:30.8]} 56. Rf6+ {[%clk 0:00:04.6]} 56... Kg7 {[%clk 0:00:31.5]} 57. g4
{[%clk 0:00:04.8]} 57... Rc2+ {[%clk 0:00:30.4]} 58. Kg3 {[%clk 0:00:04.5]}
58... Rxa2 {[%clk 0:00:31.3]} 59. Rc6 {[%clk 0:00:04.4]} 59... Re2 {[%clk
0:00:18.8]} 60. h5 {[%clk 0:00:04.7]} 60... b3 {[%clk 0:00:16.6]} 61. Rc7+
{[%clk 0:00:03.9]} 61... Kg8 {[%clk 0:00:17]} 62. Rc8+ {[%clk 0:00:04.3]} 62...
Kf7 {[%clk 0:00:17.4]} 63. Rb8 {[%clk 0:00:04.9]} 63... b2 {[%clk 0:00:17.1]}
64. Rb7+ {[%clk 0:00:03.8]} 64... Ke6 {[%clk 0:00:17.3]} 65. Rb3 {[%clk
0:00:03.6]} 65... Kd5 {[%clk 0:00:16.2]} 66. Bf6 {[%clk 0:00:03.5]} 66... a5
{[%clk 0:00:10.7]} 67. Rxb2 {[%clk 0:00:04]} 67... Rxb2 {[%clk 0:00:10]} 68.
Bxb2 {[%clk 0:00:04.9]} 68... a4 {[%clk 0:00:10.9]} 69. Kh4 {[%clk 0:00:05]}
69... Ke6 {[%clk 0:00:11.8]} 70. g5 {[%clk 0:00:04.8]} 70... Rf7 {[%clk
0:00:12.7]} 71. g6 {[%clk 0:00:05.1]} 71... Rxf3 {[%clk 0:00:13]} 72. g7 {[%clk
0:00:05.5]} 72... Kf7 {[%clk 0:00:13.8]} 73. h6 {[%clk 0:00:05.5]} 73... Kg8
{[%clk 0:00:13.7]} 74. Kg5 {[%clk 0:00:05.8]} 74... Rg3+ {[%clk 0:00:14]} 75.
Kf6 {[%clk 0:00:06.2]} 75... Kh7 {[%clk 0:00:13.6]} 76. Kf7 {[%clk 0:00:06.2]}
76... Rf3+ {[%clk 0:00:14.2]} 77. Bf6 {[%clk 0:00:04.7]} 77... Rg3 {[%clk
0:00:13.4]} 78. Ba1 {[%clk 0:00:03.8]} 78... Rg6 {[%clk 0:00:11.9]} 79. Bf6
{[%clk 0:00:03.7]} 79... a3 {[%clk 0:00:10.5]} 80. Ba1 {[%clk 0:00:04.1]} 80...
a2 {[%clk 0:00:10.9]} 81. Bc3 {[%clk 0:00:04.8]} 81... Rg2 {[%clk 0:00:11.2]}
82. Ba1 {[%clk 0:00:05]} 82... Rg1 {[%clk 0:00:11.3]} 83. Bf6 {[%clk 0:00:05.2]}
83... Rg2 {[%clk 0:00:07.3]} 84. Be5 {[%clk 0:00:05.2]} 84... Rg5 {[%clk
0:00:06.1]} 85. Bd4 {[%clk 0:00:05.5]} 85... Rg6 {[%clk 0:00:06]} 86. Bc3 {[%clk
0:00:05.7]} 86... Rg4 {[%clk 0:00:06.3]} 87. Bb2 {[%clk 0:00:05.8]} 87... Rf4+
{[%clk 0:00:05.7]} 88. Bf6 {[%clk 0:00:01.9]} 88... Rxf6+ {[%clk 0:00:06.2]} 89.
Kxf6 {[%clk 0:00:02.3]} 89... a1=Q+ {[%clk 0:00:07.1]} 90. Ke7 {[%clk
0:00:02.9]} 90... Qa7+ {[%clk 0:00:07]} 91. Kf8 {[%clk 0:00:03.2]} 91... Qb8+
{[%clk 0:00:06.9]} 92. Kf7 {[%clk 0:00:04.1]} 92... Qc7+ {[%clk 0:00:07.3]} 93.
Kf8 {[%clk 0:00:05]} 93... Qd8+ {[%clk 0:00:07.6]} 94. Kf7 {[%clk 0:00:05.9]}
94... Qg8+ {[%clk 0:00:07.8]} 95. Kf6 {[%clk 0:00:06.1]} 95... Kxh6 {[%clk
0:00:08.7]} 0-1

[Event "Late-Titled-Tuesday-Blitz-May-14-2024"]
[Site "Chess.com"]
[Date "2024.05.14"]
[Round "8"]
[White "super_emi_26"]
[Black "angelgab3"]
[Result "1/2-1/2"]
[WhiteElo "2862"]
[BlackElo "2724"]
[TimeControl "180+1"]
[EndTime "15:29:32 PDT"]
[Termination "Game drawn by 50-move rule"]

1. b3 {[%clk 0:02:56.9]} 1... e5 {[%clk 0:02:56.9]} 2. Bb2 {[%clk 0:02:57.8]}
2... Nc6 {[%clk 0:02:57.7]} 3. e3 {[%clk 0:02:58.1]} 3... g6 {[%clk 0:02:58.1]}
4. Nf3 {[%clk 0:02:58]} 4... Bg7 {[%clk 0:02:58.5]} 5. d4 {[%clk 0:02:58.6]}
5... Nge7 {[%clk 0:02:58.2]} 6. dxe5 {[%clk 0:02:58.7]} 6... O-O {[%clk
0:02:58]} 7. c4 {[%clk 0:02:57]} 7... d6 {[%clk 0:02:54.7]} 8. Nc3 {[%clk
0:02:54.6]} 8... Nxe5 {[%clk 0:02:54]} 9. Be2 {[%clk 0:02:54.4]} 9... N7c6
{[%clk 0:02:53.7]} 10. O-O {[%clk 0:02:54.6]} 10... Bd7 {[%clk 0:02:48.9]} 11.
Qd2 {[%clk 0:02:54.3]} 11... Re8 {[%clk 0:02:44.4]} 12. Nd5 {[%clk 0:02:53.6]}
12... Be6 {[%clk 0:02:42.3]} 13. Rad1 {[%clk 0:02:53.2]} 13... Bxd5 {[%clk
0:02:41.9]} 14. cxd5 {[%clk 0:02:54.1]} 14... Nxf3+ {[%clk 0:02:42.6]} 15. gxf3
{[%clk 0:02:47.3]} 15... Ne5 {[%clk 0:02:43.5]} 16. f4 {[%clk 0:02:47.1]} 16...
Nd7 {[%clk 0:02:39.9]} 17. Bxg7 {[%clk 0:02:47.6]} 17... Kxg7 {[%clk 0:02:40.8]}
18. Rc1 {[%clk 0:02:48]} 18... Rc8 {[%clk 0:02:37.6]} 19. Qd4+ {[%clk
0:02:47.5]} 19... Nf6 {[%clk 0:02:36.4]} 20. Qxa7 {[%clk 0:02:44.5]} 20... Nxd5
{[%clk 0:02:35.9]} 21. Bf3 {[%clk 0:02:39.8]} 21... Nf6 {[%clk 0:02:31.1]} 22.
Qxb7 {[%clk 0:02:38.5]} 22... c5 {[%clk 0:02:31.6]} 23. Rfd1 {[%clk 0:02:38.1]}
23... Re7 {[%clk 0:02:14.1]} 24. Qb5 {[%clk 0:02:36.4]} 24... Ra7 {[%clk
0:01:58.9]} 25. Rd2 {[%clk 0:02:35.7]} 25... Qe7 {[%clk 0:01:55.6]} 26. Rcd1
{[%clk 0:02:34.8]} 26... d5 {[%clk 0:01:49.4]} 27. Qe2 {[%clk 0:02:29.4]} 27...
Ne4 {[%clk 0:01:42]} 28. Bxe4 {[%clk 0:02:25.4]} 28... dxe4 {[%clk 0:01:42.9]}
29. Rd5 {[%clk 0:02:25.7]} 29... Rca8 {[%clk 0:01:38.6]} 30. Qb2+ {[%clk
0:02:24.7]} 30... Qf6 {[%clk 0:01:32.2]} 31. Qxf6+ {[%clk 0:02:23.3]} 31... Kxf6
{[%clk 0:01:33.1]} 32. a4 {[%clk 0:02:22.4]} 32... Rb8 {[%clk 0:01:32.9]} 33.
Rxc5 {[%clk 0:02:21.4]} 33... Rxb3 {[%clk 0:01:33.4]} 34. Rd4 {[%clk 0:02:20.1]}
34... Ra3 {[%clk 0:01:26.3]} 35. Rc6+ {[%clk 0:01:59.2]} 35... Kg7 {[%clk
0:01:24.5]} 36. Rcc4 {[%clk 0:01:58.3]} 36... f5 {[%clk 0:01:22.7]} 37. Kg2
{[%clk 0:01:58.6]} 37... Ra2 {[%clk 0:01:23]} 38. h4 {[%clk 0:01:58.9]} 38...
Kh6 {[%clk 0:01:15.8]} 39. Kg3 {[%clk 0:01:58.8]} 39... Kh5 {[%clk 0:01:12.5]}
40. Rb4 {[%clk 0:01:54.5]} 40... Rc7 {[%clk 0:01:12.1]} 41. Rdc4 {[%clk
0:01:53.2]} 41... Rd7 {[%clk 0:01:12.4]} 42. Rd4 {[%clk 0:01:50.7]} 42... Rc7
{[%clk 0:01:12.7]} 43. Rbc4 {[%clk 0:01:51.3]} 43... Rb7 {[%clk 0:01:13.3]} 44.
Rd1 {[%clk 0:01:51.4]} 44... Ra7 {[%clk 0:01:11.2]} 45. Rc8 {[%clk 0:01:32.4]}
45... R2xa4 {[%clk 0:01:04.3]} 46. Rh8 {[%clk 0:01:31.2]} 46... Kh6 {[%clk
0:01:00.6]} 47. h5 {[%clk 0:01:28.1]} 47... Rg7 {[%clk 0:00:50.6]} 48. hxg6
{[%clk 0:01:09.9]} 48... Rxg6+ {[%clk 0:00:51.5]} 49. Kh3 {[%clk 0:01:08.7]}
49... Kg7 {[%clk 0:00:42.8]} 50. Rdd8 {[%clk 0:01:04.9]} 50... Raa6 {[%clk
0:00:41.5]} 51. Rdg8+ {[%clk 0:01:03.5]} 51... Kf7 {[%clk 0:00:41.6]} 52. Rf8+
{[%clk 0:01:03.7]} 52... Kg7 {[%clk 0:00:41.5]} 53. Rfg8+ {[%clk 0:01:00.1]}
53... Kf7 {[%clk 0:00:41.6]} 54. Rb8 {[%clk 0:00:56.9]} 54... Rh6+ {[%clk
0:00:41.1]} 55. Kg2 {[%clk 0:00:57.2]} 55... Rag6+ {[%clk 0:00:42]} 56. Kf1
{[%clk 0:00:57.4]} 56... Rb6 {[%clk 0:00:35.9]} 57. Rxh7+ {[%clk 0:00:52.3]}
57... Rxh7 {[%clk 0:00:34]} 58. Rxb6 {[%clk 0:00:52.5]} 58... Rh1+ {[%clk
0:00:33.8]} 59. Kg2 {[%clk 0:00:52.7]} 59... Ra1 {[%clk 0:00:33.9]} 60. Kg3
{[%clk 0:00:53]} 60... Rg1+ {[%clk 0:00:33.2]} 61. Kh2 {[%clk 0:00:52.4]} 61...
Rg4 {[%clk 0:00:32.3]} 62. Rh6 {[%clk 0:00:51.7]} 62... Kg7 {[%clk 0:00:32]} 63.
Rh3 {[%clk 0:00:52.4]} 63... Kf6 {[%clk 0:00:32]} 64. Rg3 {[%clk 0:00:52.7]}
64... Rh4+ {[%clk 0:00:32.4]} 65. Kg2 {[%clk 0:00:53.2]} 65... Rh8 {[%clk
0:00:32.5]} 66. Kf1 {[%clk 0:00:53.7]} 66... Rh1+ {[%clk 0:00:32.6]} 67. Ke2
{[%clk 0:00:53.6]} 67... Ra1 {[%clk 0:00:33.2]} 68. Rh3 {[%clk 0:00:54.1]} 68...
Ra2+ {[%clk 0:00:33.8]} 69. Kf1 {[%clk 0:00:54.6]} 69... Kg6 {[%clk 0:00:32.7]}
70. Rh8 {[%clk 0:00:54.1]} 70... Rb2 {[%clk 0:00:31.2]} 71. Rg8+ {[%clk
0:00:53.4]} 71... Kf6 {[%clk 0:00:31.7]} 72. Ra8 {[%clk 0:00:53.8]} 72... Rc2
{[%clk 0:00:31.4]} 73. Kg2 {[%clk 0:00:53.7]} 73... Rc7 {[%clk 0:00:30.3]} 74.
Ra6+ {[%clk 0:00:51.2]} 74... Kf7 {[%clk 0:00:30.7]} 75. Kg3 {[%clk 0:00:51.8]}
75... Rc2 {[%clk 0:00:30.5]} 76. Ra5 {[%clk 0:00:47.1]} 76... Kf6 {[%clk
0:00:28.9]} 77. Ra6+ {[%clk 0:00:47.7]} 77... Kf7 {[%clk 0:00:28.4]} 78. Ra1
{[%clk 0:00:48.4]} 78... Kf6 {[%clk 0:00:24]} 79. Rh1 {[%clk 0:00:48]} 79... Kg6
{[%clk 0:00:23.7]} 80. Rh2 {[%clk 0:00:46.6]} 80... Rc1 {[%clk 0:00:23.5]} 81.
Kh3 {[%clk 0:00:45.8]} 81... Kf6 {[%clk 0:00:23.4]} 82. Kh4 {[%clk 0:00:45.7]}
82... Rg1 {[%clk 0:00:23]} 83. Kh3 {[%clk 0:00:45.2]} 83... Rg8 {[%clk
0:00:22.4]} 84. Rg2 {[%clk 0:00:45.2]} 84... Rh8+ {[%clk 0:00:22.4]} 85. Kg3
{[%clk 0:00:46]} 85... Rg8+ {[%clk 0:00:22.9]} 86. Kh2 {[%clk 0:00:46.7]} 86...
Rh8+ {[%clk 0:00:23.8]} 87. Kg1 {[%clk 0:00:47.3]} 87... Ra8 {[%clk 0:00:24.1]}
88. Rh2 {[%clk 0:00:46.9]} 88... Kg6 {[%clk 0:00:24.4]} 89. Kg2 {[%clk
0:00:47.1]} 89... Rb8 {[%clk 0:00:23]} 90. Kg3 {[%clk 0:00:46.9]} 90... Ra8
{[%clk 0:00:23.1]} 91. Rh1 {[%clk 0:00:47.3]} 91... Rg8 {[%clk 0:00:22.7]} 92.
Rc1 {[%clk 0:00:46.8]} 92... Kf6+ {[%clk 0:00:23]} 93. Kh2 {[%clk 0:00:47]}
93... Rg4 {[%clk 0:00:22.7]} 94. Rc6+ {[%clk 0:00:45.9]} 94... Kf7 {[%clk
0:00:22.9]} 95. Rc5 {[%clk 0:00:45.3]} 95... Kf6 {[%clk 0:00:23.2]} 96. Rb5
{[%clk 0:00:45.4]} 96... Ke6 {[%clk 0:00:23.5]} 97. Kh3 {[%clk 0:00:44.9]} 97...
Rg1 {[%clk 0:00:23]} 98. Kh4 {[%clk 0:00:44.5]} 98... Rh1+ {[%clk 0:00:21.2]}
99. Kg5 {[%clk 0:00:42.5]} 99... Rg1+ {[%clk 0:00:21.2]} 100. Kh6 {[%clk
0:00:43.1]} 100... Rg2 {[%clk 0:00:20.8]} 101. Rb6+ {[%clk 0:00:41.4]} 101...
Ke7 {[%clk 0:00:20.3]} 102. Rb2 {[%clk 0:00:28.8]} 102... Ke6 {[%clk 0:00:20.2]}
103. Ra2 {[%clk 0:00:28.2]} 103... Kd5 {[%clk 0:00:19.4]} 104. Kh5 {[%clk
0:00:22.1]} 104... Kc4 {[%clk 0:00:19.2]} 105. Kh4 {[%clk 0:00:19.4]} 105... Kd3
{[%clk 0:00:17.1]} 106. Kh3 {[%clk 0:00:18.8]} 106... Rg8 {[%clk 0:00:17.1]}
107. Kh4 {[%clk 0:00:16.9]} 107... Rg2 {[%clk 0:00:16.9]} 108. Kh5 {[%clk
0:00:17]} 1/2-1/2